[Event "Titled Tuesday Blitz January 17 Late 2023"]
[White "Pakleza, Zbigniew"]
[Black "Golding, Alex"]
[WhiteFideId "1119290"]
[BlackFideId "427241"]
[WhiteElo "2494"]
[BlackElo "2318"]
[Result "1-0"]
[Round "01"]
[TimeControl "180+2"]
[Date "2023.01.17"]
[WhiteClock "0:00:28"]
[BlackClock "0:00:13"]

1. d4 {[%clk 0:03:00]}  Nf6 {[%clk 0:02:58]} 2. Nf3 {[%clk 0:03:00]}  d5 {[%clk 0:02:58]} 3. Bf4 {[%clk 0:03:00]}  c6 {[%clk 0:02:58]} 4. e3 {[%clk 0:03:00]}  Bg4 {[%clk 0:02:58]} 5. c4 {[%clk 0:03:00]}  Nbd7 {[%clk 0:02:57]} 6. Nc3 {[%clk 0:03:00]}  Nb6 {[%clk 0:02:55]} 7. c5 {[%clk 0:02:55]}  Nbd7 {[%clk 0:02:55]} 8. Be2 {[%clk 0:02:48]}  e6 {[%clk 0:02:54]} 9. h3 {[%clk 0:02:48]}  Bxf3 {[%clk 0:02:53]} 10. Bxf3 {[%clk 0:02:49]}  Be7 {[%clk 0:02:54]} 11. O-O {[%clk 0:02:47]}  O-O {[%clk 0:02:54]} 12. b4 {[%clk 0:02:48]}  a6 {[%clk 0:02:54]} 13. a4 {[%clk 0:02:47]}  Qc8 {[%clk 0:02:44]} 14. Qb3 {[%clk 0:02:26]}  Bd8 {[%clk 0:02:43]} 15. b5 {[%clk 0:02:26]}  axb5 {[%clk 0:02:43]} 16. axb5 {[%clk 0:02:26]}  Rxa1 {[%clk 0:02:44]} 17. Rxa1 {[%clk 0:02:26]}  Bc7 {[%clk 0:02:43]} 18. b6 {[%clk 0:02:04]}  Bxf4 {[%clk 0:02:38]} 19. exf4 {[%clk 0:02:05]}  Nb8 {[%clk 0:02:19]} 20. Ra7 {[%clk 0:01:58]}  Nfd7 {[%clk 0:02:10]} 21. Ra8 {[%clk 0:01:49]}  Qd8 {[%clk 0:01:47]} 22. Ne2 {[%clk 0:01:30]}  Qe7 {[%clk 0:01:42]} 23. Ra7 {[%clk 0:01:25]}  Nf6 {[%clk 0:01:29]} 24. Qa4 {[%clk 0:01:24]}  g6 {[%clk 0:01:22]} 25. g3 {[%clk 0:01:23]}  Qd7 {[%clk 0:01:14]} 26. Nc1 {[%clk 0:01:16]}  Ne4 {[%clk 0:01:10]} 27. Qa3 {[%clk 0:00:48]}  f5 {[%clk 0:01:05]} 28. h4 {[%clk 0:00:40]}  h5 {[%clk 0:01:04]} 29. Nd3 {[%clk 0:00:40]}  Qc8 {[%clk 0:00:43]} 30. Ne5 {[%clk 0:00:35]}  Kh7 {[%clk 0:00:42]} 31. Ra8 {[%clk 0:00:34]}  Rg8 {[%clk 0:00:38]} 32. Qa7 {[%clk 0:00:27]}  Kh6 {[%clk 0:00:26]} 33. Bxe4 {[%clk 0:00:27]}  dxe4 {[%clk 0:00:19]} 34. Nf7+ {[%clk 0:00:27]}  Kg7 {[%clk 0:00:17]} 35. Nd6 {[%clk 0:00:28]}  Qd7 {[%clk 0:00:13]} 36. Rxb8 {[%clk 0:00:28]} 1-0


[Site "https://www.chess.com"]

[Event "Titled Tuesday Blitz January 17 Late 2023"]
[White "Fishbein, Mitch"]
[Black "Boros, Denes"]
[WhiteFideId "30922917"]
[BlackFideId "722340"]
[WhiteElo "2120"]
[BlackElo "2406"]
[Result "0-1"]
[Round "01"]
[TimeControl "180+2"]
[Date "2023.01.17"]
[WhiteClock "0:00:04"]
[BlackClock "0:00:10"]

1. d4 {[%clk 0:02:58]}  g6 {[%clk 0:02:59]} 2. e4 {[%clk 0:02:57]}  d5 {[%clk 0:02:59]} 3. exd5 {[%clk 0:02:56]}  Qxd5 {[%clk 0:03:00]} 4. Nc3 {[%clk 0:02:54]}  Qd6 {[%clk 0:02:58]} 5. Nf3 {[%clk 0:02:53]}  Bg7 {[%clk 0:02:59]} 6. Bc4 {[%clk 0:02:46]}  Nh6 {[%clk 0:02:57]} 7. O-O {[%clk 0:02:41]}  Nf5 {[%clk 0:02:53]} 8. Ne4 {[%clk 0:02:13]}  Qd8 {[%clk 0:02:50]} 9. c3 {[%clk 0:02:12]}  O-O {[%clk 0:02:50]} 10. Re1 {[%clk 0:02:11]}  Nd7 {[%clk 0:02:43]} 11. Bb3 {[%clk 0:02:09]}  b6 {[%clk 0:02:39]} 12. Neg5 {[%clk 0:02:04]}  Nd6 {[%clk 0:02:23]} 13. Qe2 {[%clk 0:01:53]}  c5 {[%clk 0:02:15]} 14. Qxe7 {[%clk 0:01:50]}  Qxe7 {[%clk 0:02:07]} 15. Rxe7 {[%clk 0:01:51]}  c4 {[%clk 0:02:06]} 16. Bc2 {[%clk 0:01:40]}  h6 {[%clk 0:02:06]} 17. Ne4 {[%clk 0:01:36]}  Nf5 {[%clk 0:02:06]} 18. Rxd7 {[%clk 0:01:26]}  Bxd7 {[%clk 0:02:07]} 19. g4 {[%clk 0:01:19]}  Ne7 {[%clk 0:02:05]} 20. h3 {[%clk 0:01:17]}  f5 {[%clk 0:01:57]} 21. gxf5 {[%clk 0:01:08]}  Bxf5 {[%clk 0:01:57]} 22. Nh4 {[%clk 0:01:04]}  g5 {[%clk 0:01:52]} 23. Nxf5 {[%clk 0:01:03]}  Nxf5 {[%clk 0:01:53]} 24. Be3 {[%clk 0:00:53]}  Rae8 {[%clk 0:01:47]} 25. b3 {[%clk 0:00:50]}  cxb3 {[%clk 0:01:30]} 26. axb3 {[%clk 0:00:49]}  a5 {[%clk 0:01:26]} 27. Bd3 {[%clk 0:00:46]}  Nxe3 {[%clk 0:01:20]} 28. fxe3 {[%clk 0:00:46]}  Rf3 {[%clk 0:01:21]} 29. Re1 {[%clk 0:00:40]}  Kh8 {[%clk 0:01:02]} 30. Kg2 {[%clk 0:00:37]}  Ref8 {[%clk 0:01:02]} 31. Rf1 {[%clk 0:00:24]}  Rxf1 {[%clk 0:01:00]} 32. Bxf1 {[%clk 0:00:24]}  Re8 {[%clk 0:00:52]} 33. Bd3 {[%clk 0:00:24]}  Bf8 {[%clk 0:00:52]} 34. Kf3 {[%clk 0:00:20]}  Kg7 {[%clk 0:00:51]} 35. Ng3 {[%clk 0:00:20]}  Rc8 {[%clk 0:00:50]} 36. c4 {[%clk 0:00:20]}  Kf6 {[%clk 0:00:45]} 37. e4 {[%clk 0:00:20]}  b5 {[%clk 0:00:45]} 38. e5+ {[%clk 0:00:20]}  Kf7 {[%clk 0:00:45]} 39. e6+ {[%clk 0:00:17]}  Kf6 {[%clk 0:00:44]} 40. d5 {[%clk 0:00:14]}  a4 {[%clk 0:00:40]} 41. bxa4 {[%clk 0:00:13]}  bxa4 {[%clk 0:00:37]} 42. Ke4 {[%clk 0:00:10]}  a3 {[%clk 0:00:37]} 43. Bb1 {[%clk 0:00:02]}  Rxc4+ {[%clk 0:00:31]} 44. Kd3 {[%clk 0:00:03]}  Rc1 {[%clk 0:00:28]} 45. Ne4+ {[%clk 0:00:03]}  Ke5 {[%clk 0:00:27]} 46. Ba2 {[%clk 0:00:04]}  Rd1+ {[%clk 0:00:21]} 47. Ke2 {[%clk 0:00:04]}  Rh1 {[%clk 0:00:20]} 48. Nf2 {[%clk 0:00:03]}  Ra1 {[%clk 0:00:19]} 49. Bc4 {[%clk 0:00:03]}  a2 {[%clk 0:00:18]} 50. Kf3 {[%clk 0:00:03]}  Kd4 {[%clk 0:00:15]} 51. Bb3 {[%clk 0:00:04]}  Kc3 {[%clk 0:00:15]} 52. Bxa2 {[%clk 0:00:04]}  Rxa2 {[%clk 0:00:15]} 53. Ne4+ {[%clk 0:00:05]}  Kd4 {[%clk 0:00:16]} 54. d6 {[%clk 0:00:06]}  Ra3+ {[%clk 0:00:15]} 55. Kg4 {[%clk 0:00:06]}  Kxe4 {[%clk 0:00:12]} 56. e7 {[%clk 0:00:07]}  Ra8 {[%clk 0:00:12]} 57. Kh5 {[%clk 0:00:04]}  Bxe7 {[%clk 0:00:12]} 58. dxe7 {[%clk 0:00:04]}  Kf5 {[%clk 0:00:12]} 59. Kxh6 {[%clk 0:00:04]}  Re8 {[%clk 0:00:10]} 0-1


[Site "https://www.chess.com"]

[Event "Titled Tuesday Blitz January 17 Late 2023"]
[White "Riehle, Marco"]
[Black "Sanchez, Robert"]
[WhiteFideId "12904392"]
[BlackFideId "2034360"]
[WhiteElo "2368"]
[BlackElo "1966"]
[Result "1-0"]
[Round "01"]
[TimeControl "180+2"]
[Date "2023.01.17"]
[WhiteClock "0:02:09"]
[BlackClock "0:01:19"]

1. e4 {[%clk 0:02:59]}  e6 {[%clk 0:02:58]} 2. c4 {[%clk 0:02:59]}  d5 {[%clk 0:02:55]} 3. cxd5 {[%clk 0:03:00]}  exd5 {[%clk 0:02:55]} 4. Qb3 {[%clk 0:03:00]}  Nf6 {[%clk 0:02:52]} 5. e5 {[%clk 0:03:00]}  Ne4 {[%clk 0:02:45]} 6. Nc3 {[%clk 0:03:00]}  Nxc3 {[%clk 0:02:45]} 7. bxc3 {[%clk 0:03:01]}  Be7 {[%clk 0:02:42]} 8. d4 {[%clk 0:03:01]}  O-O {[%clk 0:02:41]} 9. Nf3 {[%clk 0:03:02]}  c6 {[%clk 0:02:32]} 10. Bd3 {[%clk 0:03:01]}  Qb6 {[%clk 0:02:25]} 11. O-O {[%clk 0:03:00]}  Bg4 {[%clk 0:02:24]} 12. Nd2 {[%clk 0:02:55]}  Nd7 {[%clk 0:02:20]} 13. f4 {[%clk 0:02:52]}  Nb8 {[%clk 0:01:57]} 14. h3 {[%clk 0:02:48]}  Bc8 {[%clk 0:01:56]} 15. Qc2 {[%clk 0:02:47]}  h6 {[%clk 0:01:53]} 16. f5 {[%clk 0:02:44]}  f6 {[%clk 0:01:50]} 17. Nf3 {[%clk 0:02:39]}  c5 {[%clk 0:01:48]} 18. Rb1 {[%clk 0:02:38]}  Qc7 {[%clk 0:01:44]} 19. Bf4 {[%clk 0:02:37]}  Nc6 {[%clk 0:01:37]} 20. Ne1 {[%clk 0:02:23]}  fxe5 {[%clk 0:01:33]} 21. dxe5 {[%clk 0:02:23]}  Nxe5 {[%clk 0:01:33]} 22. Nf3 {[%clk 0:02:24]}  Bd6 {[%clk 0:01:32]} 23. Nxe5 {[%clk 0:02:24]}  Bxe5 {[%clk 0:01:33]} 24. Bxe5 {[%clk 0:02:24]}  Qxe5 {[%clk 0:01:33]} 25. Rbe1 {[%clk 0:02:23]}  Qd6 {[%clk 0:01:27]} 26. f6 {[%clk 0:02:12]}  Rxf6 {[%clk 0:01:19]} 27. Re8+ {[%clk 0:02:09]} 1-0


[Site "https://www.chess.com"]

[Event "Titled Tuesday Blitz January 17 Late 2023"]
[White "Kobalia, Mikhail"]
[Black "Ankerst, Mihael"]
[WhiteFideId "4119150"]
[BlackFideId "14602369"]
[WhiteElo "2578"]
[BlackElo "2370"]
[Result "1-0"]
[Round "01"]
[TimeControl "180+2"]
[Date "2023.01.17"]
[WhiteClock "0:01:38"]
[BlackClock "0:00:18"]

1. e4 {[%clk 0:02:50]}  c5 {[%clk 0:02:59]} 2. Nf3 {[%clk 0:02:49]}  Qb6 {[%clk 0:02:59]} 3. c3 {[%clk 0:02:48]}  e6 {[%clk 0:02:59]} 4. d4 {[%clk 0:02:47]}  d5 {[%clk 0:02:59]} 5. exd5 {[%clk 0:02:47]}  exd5 {[%clk 0:03:00]} 6. Bd3 {[%clk 0:02:44]}  c4 {[%clk 0:03:01]} 7. Bc2 {[%clk 0:02:44]}  Bd6 {[%clk 0:03:01]} 8. O-O {[%clk 0:02:43]}  Ne7 {[%clk 0:03:01]} 9. b3 {[%clk 0:02:41]}  cxb3 {[%clk 0:03:01]} 10. axb3 {[%clk 0:02:41]}  Nbc6 {[%clk 0:03:02]} 11. c4 {[%clk 0:02:40]}  Qd8 {[%clk 0:03:03]} 12. c5 {[%clk 0:02:38]}  Bc7 {[%clk 0:03:02]} 13. Nc3 {[%clk 0:02:38]}  Bg4 {[%clk 0:02:55]} 14. Nb5 {[%clk 0:02:31]}  Bb8 {[%clk 0:02:53]} 15. Re1 {[%clk 0:02:29]}  O-O {[%clk 0:02:52]} 16. Bxh7+ {[%clk 0:02:27]}  Kh8 {[%clk 0:02:45]} 17. Bb1 {[%clk 0:02:27]}  a6 {[%clk 0:02:41]} 18. Bg5 {[%clk 0:02:16]}  Kg8 {[%clk 0:02:29]} 19. Qd3 {[%clk 0:02:12]}  g6 {[%clk 0:02:11]} 20. Bf6 {[%clk 0:01:55]}  Qd7 {[%clk 0:01:54]} 21. Qd2 {[%clk 0:01:55]}  Nf5 {[%clk 0:01:41]} 22. Nh4 {[%clk 0:01:43]}  Kh7 {[%clk 0:00:19]} 23. Bxf5 {[%clk 0:01:40]}  Qxf5 {[%clk 0:00:18]} 24. Nxf5 {[%clk 0:01:38]} 1-0


[Site "https://www.chess.com"]

[Event "Titled Tuesday Blitz January 17 Late 2023"]
[White "Vakhlamov, Igor L."]
[Black "Sreyas Payyappat"]
[WhiteFideId "24126748"]
[BlackFideId "46674969"]
[WhiteElo "2413"]
[BlackElo "2076"]
[Result "1-0"]
[Round "01"]
[TimeControl "180+2"]
[Date "2023.01.17"]
[WhiteClock "0:00:26"]
[BlackClock "0:00:14"]

1. e4 {[%clk 0:02:56]}  c6 {[%clk 0:03:00]} 2. d4 {[%clk 0:02:56]}  d5 {[%clk 0:03:01]} 3. exd5 {[%clk 0:02:57]}  cxd5 {[%clk 0:03:02]} 4. c4 {[%clk 0:02:58]}  Nf6 {[%clk 0:03:01]} 5. Nc3 {[%clk 0:02:58]}  Nc6 {[%clk 0:03:02]} 6. Nf3 {[%clk 0:02:57]}  g6 {[%clk 0:03:02]} 7. c5 {[%clk 0:02:57]}  Bg7 {[%clk 0:03:02]} 8. Bb5 {[%clk 0:02:57]}  O-O {[%clk 0:03:03]} 9. h3 {[%clk 0:02:56]}  Bd7 {[%clk 0:03:02]} 10. O-O {[%clk 0:02:56]}  e6 {[%clk 0:03:01]} 11. Re1 {[%clk 0:02:55]}  Rc8 {[%clk 0:02:58]} 12. Bf4 {[%clk 0:02:53]}  a6 {[%clk 0:02:56]} 13. Bxc6 {[%clk 0:02:36]}  Bxc6 {[%clk 0:02:56]} 14. Ne5 {[%clk 0:02:36]}  Nd7 {[%clk 0:02:50]} 15. b4 {[%clk 0:02:34]}  Nxe5 {[%clk 0:02:47]} 16. Bxe5 {[%clk 0:02:35]}  Bxe5 {[%clk 0:02:47]} 17. Rxe5 {[%clk 0:02:36]}  Re8 {[%clk 0:02:46]} 18. Qe2 {[%clk 0:02:26]}  Qd7 {[%clk 0:02:43]} 19. Re1 {[%clk 0:02:24]}  Re7 {[%clk 0:02:32]} 20. Qe3 {[%clk 0:02:21]}  Rce8 {[%clk 0:02:30]} 21. Qf4 {[%clk 0:02:21]}  Kg7 {[%clk 0:02:29]} 22. h4 {[%clk 0:02:17]}  f6 {[%clk 0:02:28]} 23. R5e3 {[%clk 0:02:15]}  h5 {[%clk 0:02:07]} 24. Nb1 {[%clk 0:01:23]}  Ba4 {[%clk 0:01:53]} 25. R3e2 {[%clk 0:01:09]}  Bb5 {[%clk 0:01:46]} 26. Re3 {[%clk 0:01:09]}  Ba4 {[%clk 0:01:01]} 27. Nd2 {[%clk 0:01:08]}  Bc2 {[%clk 0:01:00]} 28. Nf1 {[%clk 0:01:08]}  Be4 {[%clk 0:00:57]} 29. f3 {[%clk 0:01:08]}  e5 {[%clk 0:00:55]} 30. dxe5 {[%clk 0:01:07]}  fxe5 {[%clk 0:00:56]} 31. Qg3 {[%clk 0:01:02]}  Bf5 {[%clk 0:00:32]} 32. Rxe5 {[%clk 0:01:02]}  Rxe5 {[%clk 0:00:32]} 33. Rxe5 {[%clk 0:01:03]}  Qc7 {[%clk 0:00:31]} 34. f4 {[%clk 0:00:58]}  Rxe5 {[%clk 0:00:30]} 35. fxe5 {[%clk 0:00:59]}  d4 {[%clk 0:00:31]} 36. Qf4 {[%clk 0:00:54]}  d3 {[%clk 0:00:25]} 37. Qd4 {[%clk 0:00:42]}  Qd7 {[%clk 0:00:20]} 38. Qxd7+ {[%clk 0:00:41]}  Bxd7 {[%clk 0:00:21]} 39. Kf2 {[%clk 0:00:41]}  Kf7 {[%clk 0:00:20]} 40. Ke3 {[%clk 0:00:39]}  Bf5 {[%clk 0:00:20]} 41. Kd4 {[%clk 0:00:35]}  Ke6 {[%clk 0:00:19]} 42. a3 {[%clk 0:00:33]}  Kd7 {[%clk 0:00:19]} 43. g3 {[%clk 0:00:27]}  Kc6 {[%clk 0:00:18]} 44. a4 {[%clk 0:00:27]}  Kc7 {[%clk 0:00:16]} 45. Ne3 {[%clk 0:00:27]}  d2 {[%clk 0:00:15]} 46. Kc3 {[%clk 0:00:27]}  Bd7 {[%clk 0:00:14]} 47. a5 {[%clk 0:00:22]}  Kc6 {[%clk 0:00:14]} 48. Kxd2 {[%clk 0:00:22]}  Kb5 {[%clk 0:00:15]} 49. Kc3 {[%clk 0:00:23]}  Be6 {[%clk 0:00:16]} 50. Ng2 {[%clk 0:00:22]}  Bf5 {[%clk 0:00:15]} 51. Nf4 {[%clk 0:00:23]}  Kc6 {[%clk 0:00:16]} 52. Kc4 {[%clk 0:00:23]}  Kc7 {[%clk 0:00:15]} 53. Kd4 {[%clk 0:00:23]}  Kd7 {[%clk 0:00:15]} 54. Kd5 {[%clk 0:00:23]}  Ke7 {[%clk 0:00:15]} 55. e6 {[%clk 0:00:24]}  Bc2 {[%clk 0:00:13]} 56. Ke5 {[%clk 0:00:23]}  Bf5 {[%clk 0:00:12]} 57. Nd5+ {[%clk 0:00:24]}  Kd8 {[%clk 0:00:13]} 58. Kd6 {[%clk 0:00:24]}  Bg4 {[%clk 0:00:11]} 59. e7+ {[%clk 0:00:24]}  Ke8 {[%clk 0:00:12]} 60. Nf6+ {[%clk 0:00:24]}  Kf7 {[%clk 0:00:13]} 61. e8=Q+ {[%clk 0:00:25]}  Kxf6 {[%clk 0:00:14]} 62. Qe7+ {[%clk 0:00:25]}  Kf5 {[%clk 0:00:14]} 63. Qe5# {[%clk 0:00:26]} 1-0


[Site "https://www.chess.com"]

[Event "Titled Tuesday Blitz January 17 Late 2023"]
[White "Rostovtsev, Dmitry"]
[Black "Szyszylo, Rafal"]
[WhiteFideId "34278320"]
[BlackFideId "1109626"]
[WhiteElo "2264"]
[BlackElo "2091"]
[Result "1-0"]
[Round "01"]
[TimeControl "180+2"]
[Date "2023.01.17"]
[WhiteClock "0:01:41"]
[BlackClock "0:00:08"]

1. e4 {[%clk 0:02:58]}  g6 {[%clk 0:03:00]} 2. d4 {[%clk 0:02:59]}  d6 {[%clk 0:02:59]} 3. Nc3 {[%clk 0:03:00]}  Nf6 {[%clk 0:03:00]} 4. f4 {[%clk 0:03:00]}  Bg7 {[%clk 0:02:59]} 5. Nf3 {[%clk 0:03:01]}  O-O {[%clk 0:03:00]} 6. e5 {[%clk 0:03:02]}  Nfd7 {[%clk 0:02:59]} 7. Bc4 {[%clk 0:03:01]}  Nc6 {[%clk 0:02:57]} 8. O-O {[%clk 0:03:01]}  Nb6 {[%clk 0:02:57]} 9. Bb3 {[%clk 0:03:01]}  Na5 {[%clk 0:02:55]} 10. Be3 {[%clk 0:02:56]}  Nxb3 {[%clk 0:02:42]} 11. axb3 {[%clk 0:02:57]}  f6 {[%clk 0:02:41]} 12. Qe2 {[%clk 0:02:56]}  Bg4 {[%clk 0:02:40]} 13. h3 {[%clk 0:02:56]}  Bxf3 {[%clk 0:02:39]} 14. Rxf3 {[%clk 0:02:54]}  fxe5 {[%clk 0:02:37]} 15. dxe5 {[%clk 0:02:53]}  dxe5 {[%clk 0:02:27]} 16. fxe5 {[%clk 0:02:53]}  Bxe5 {[%clk 0:02:03]} 17. Bxb6 {[%clk 0:02:24]}  Rxf3 {[%clk 0:01:33]} 18. Qxe5 {[%clk 0:02:07]}  Rf5 {[%clk 0:01:16]} 19. Qe6+ {[%clk 0:01:55]}  Kg7 {[%clk 0:01:14]} 20. Rd1 {[%clk 0:01:56]}  Qf8 {[%clk 0:00:56]} 21. Bd4+ {[%clk 0:01:38]}  Kh6 {[%clk 0:00:55]} 22. Qe3+ {[%clk 0:01:39]}  g5 {[%clk 0:00:51]} 23. Ne4 {[%clk 0:01:29]}  Kg6 {[%clk 0:00:45]} 24. Bc3 {[%clk 0:01:26]}  e5 {[%clk 0:00:35]} 25. Ng3 {[%clk 0:01:24]}  Rf4 {[%clk 0:00:15]} 26. Qxe5 {[%clk 0:01:23]}  Re8 {[%clk 0:00:16]} 27. Qxc7 {[%clk 0:01:20]}  Re7 {[%clk 0:00:14]} 28. Qd6+ {[%clk 0:01:20]}  Rf6 {[%clk 0:00:06]} 29. Qxf6+ {[%clk 0:01:20]}  Qxf6 {[%clk 0:00:06]} 30. Bxf6 {[%clk 0:01:20]}  Kxf6 {[%clk 0:00:07]} 31. Rf1+ {[%clk 0:01:21]}  Kg6 {[%clk 0:00:07]} 32. Nf5 {[%clk 0:01:22]}  Rc7 {[%clk 0:00:07]} 33. Nd4 {[%clk 0:01:22]}  Rc5 {[%clk 0:00:06]} 34. c3 {[%clk 0:01:22]}  b5 {[%clk 0:00:06]} 35. b4 {[%clk 0:01:23]}  Rd5 {[%clk 0:00:06]} 36. Re1 {[%clk 0:01:24]}  a5 {[%clk 0:00:05]} 37. Re6+ {[%clk 0:01:25]}  Kg7 {[%clk 0:00:05]} 38. bxa5 {[%clk 0:01:26]}  b4 {[%clk 0:00:05]} 39. a6 {[%clk 0:01:26]}  bxc3 {[%clk 0:00:05]} 40. bxc3 {[%clk 0:01:27]}  Ra5 {[%clk 0:00:05]} 41. a7 {[%clk 0:01:28]}  Rxa7 {[%clk 0:00:04]} 42. Rc6 {[%clk 0:01:28]}  Ra1+ {[%clk 0:00:04]} 43. Kh2 {[%clk 0:01:28]}  Rc1 {[%clk 0:00:05]} 44. Nf5+ {[%clk 0:01:29]}  Kf7 {[%clk 0:00:04]} 45. c4 {[%clk 0:01:30]}  h5 {[%clk 0:00:04]} 46. c5 {[%clk 0:01:30]}  g4 {[%clk 0:00:04]} 47. hxg4 {[%clk 0:01:31]}  hxg4 {[%clk 0:00:05]} 48. Kg3 {[%clk 0:01:32]}  Rc4 {[%clk 0:00:05]} 49. Nd6+ {[%clk 0:01:32]}  Ke7 {[%clk 0:00:04]} 50. Nxc4 {[%clk 0:01:32]}  Kd7 {[%clk 0:00:04]} 51. Rd6+ {[%clk 0:01:33]}  Ke7 {[%clk 0:00:04]} 52. Kxg4 {[%clk 0:01:34]}  Kf7 {[%clk 0:00:04]} 53. Kf4 {[%clk 0:01:35]}  Ke7 {[%clk 0:00:05]} 54. g4 {[%clk 0:01:36]}  Kf7 {[%clk 0:00:06]} 55. g5 {[%clk 0:01:37]}  Ke7 {[%clk 0:00:06]} 56. c6 {[%clk 0:01:38]}  Kf7 {[%clk 0:00:07]} 57. c7 {[%clk 0:01:39]}  Ke7 {[%clk 0:00:08]} 58. c8=Q {[%clk 0:01:40]}  Kf7 {[%clk 0:00:08]} 59. Qc7+ {[%clk 0:01:41]} 1-0


[Site "https://www.chess.com"]

[Event "Titled Tuesday Blitz January 17 Late 2023"]
[White "Vega Gutierrez, Sabrina"]
[Black "Tatarinov, Dmitry"]
[WhiteFideId "2219026"]
[BlackFideId "24160067"]
[WhiteElo "2377"]
[BlackElo "2310"]
[Result "0-1"]
[Round "01"]
[TimeControl "180+2"]
[Date "2023.01.17"]
[WhiteClock "0:00:15"]
[BlackClock "0:02:16"]

1. e3 {[%clk 0:02:59]}  e5 {[%clk 0:02:59]} 2. d4 {[%clk 0:02:56]}  Nc6 {[%clk 0:02:56]} 3. d5 {[%clk 0:02:55]}  Nce7 {[%clk 0:02:55]} 4. c4 {[%clk 0:02:55]}  Ng6 {[%clk 0:02:55]} 5. Nc3 {[%clk 0:02:55]}  Bb4 {[%clk 0:02:55]} 6. Bd2 {[%clk 0:02:54]}  a5 {[%clk 0:02:55]} 7. Nge2 {[%clk 0:02:49]}  Nf6 {[%clk 0:02:55]} 8. h4 {[%clk 0:02:29]}  h6 {[%clk 0:02:47]} 9. h5 {[%clk 0:02:26]}  Nf8 {[%clk 0:02:46]} 10. Ng3 {[%clk 0:02:22]}  d6 {[%clk 0:02:46]} 11. Qc2 {[%clk 0:02:20]}  N8d7 {[%clk 0:02:45]} 12. Be2 {[%clk 0:02:09]}  O-O {[%clk 0:02:44]} 13. O-O {[%clk 0:02:02]}  Nc5 {[%clk 0:02:44]} 14. a3 {[%clk 0:01:52]}  Bxc3 {[%clk 0:02:44]} 15. Bxc3 {[%clk 0:01:53]}  a4 {[%clk 0:02:44]} 16. f4 {[%clk 0:01:50]}  Nfd7 {[%clk 0:02:34]} 17. Nf5 {[%clk 0:01:28]}  Re8 {[%clk 0:02:32]} 18. fxe5 {[%clk 0:01:22]}  Nxe5 {[%clk 0:02:32]} 19. Rf4 {[%clk 0:01:20]}  Qg5 {[%clk 0:02:27]} 20. Raf1 {[%clk 0:01:18]}  Bd7 {[%clk 0:02:23]} 21. Bd4 {[%clk 0:00:50]}  Nb3 {[%clk 0:02:18]} 22. Bc3 {[%clk 0:00:48]}  Bxf5 {[%clk 0:02:17]} 23. Qxf5 {[%clk 0:00:47]}  Qxf5 {[%clk 0:02:17]} 24. Rxf5 {[%clk 0:00:48]}  f6 {[%clk 0:02:17]} 25. Bxe5 {[%clk 0:00:34]}  Rxe5 {[%clk 0:02:16]} 26. Rxe5 {[%clk 0:00:34]}  dxe5 {[%clk 0:02:16]} 27. Bg4 {[%clk 0:00:33]}  Nc5 {[%clk 0:02:16]} 28. Bf5 {[%clk 0:00:31]}  Ra6 {[%clk 0:02:16]} 29. Rc1 {[%clk 0:00:27]}  Rb6 {[%clk 0:02:16]} 30. Rc2 {[%clk 0:00:27]}  Kf8 {[%clk 0:02:16]} 31. Kf2 {[%clk 0:00:27]}  Ke7 {[%clk 0:02:17]} 32. Ke2 {[%clk 0:00:27]}  e4 {[%clk 0:02:16]} 33. Kd2 {[%clk 0:00:18]}  Kd6 {[%clk 0:02:16]} 34. Ke2 {[%clk 0:00:17]}  Ke5 {[%clk 0:02:16]} 35. Rd2 {[%clk 0:00:15]}  Kxf5 {[%clk 0:02:16]} 0-1


[Site "https://www.chess.com"]

[Event "Titled Tuesday Blitz January 17 Late 2023"]
[White "Jaracz, Pawel"]
[Black "Chernomordik, Pavel"]
[WhiteFideId "1102222"]
[BlackFideId "2804530"]
[WhiteElo "2467"]
[BlackElo "2150"]
[Result "1-0"]
[Round "01"]
[TimeControl "180+2"]
[Date "2023.01.17"]
[WhiteClock "0:01:36"]
[BlackClock "0:01:34"]

1. d4 {[%clk 0:02:59]}  g6 {[%clk 0:02:59]} 2. e4 {[%clk 0:02:58]}  Bg7 {[%clk 0:02:58]} 3. Nc3 {[%clk 0:02:58]}  d6 {[%clk 0:02:57]} 4. Bg5 {[%clk 0:02:54]}  h6 {[%clk 0:02:55]} 5. Be3 {[%clk 0:02:53]}  a6 {[%clk 0:02:55]} 6. Qd2 {[%clk 0:02:52]}  b5 {[%clk 0:02:54]} 7. Bd3 {[%clk 0:02:51]}  Bb7 {[%clk 0:02:53]} 8. Nf3 {[%clk 0:02:47]}  Nd7 {[%clk 0:02:52]} 9. O-O {[%clk 0:02:44]}  c5 {[%clk 0:02:46]} 10. dxc5 {[%clk 0:02:21]}  Nxc5 {[%clk 0:02:45]} 11. a4 {[%clk 0:02:14]}  b4 {[%clk 0:02:29]} 12. Nd5 {[%clk 0:02:14]}  a5 {[%clk 0:02:22]} 13. Bb5+ {[%clk 0:02:10]}  Nd7 {[%clk 0:02:19]} 14. Bd4 {[%clk 0:02:07]}  Bxd4 {[%clk 0:02:09]} 15. Qxd4 {[%clk 0:02:06]}  e5 {[%clk 0:02:04]} 16. Nxe5 {[%clk 0:02:02]}  Bxd5 {[%clk 0:01:52]} 17. Nxd7 {[%clk 0:01:58]}  f6 {[%clk 0:01:47]} 18. Nxf6+ {[%clk 0:01:51]}  Kf7 {[%clk 0:01:40]} 19. Nxd5 {[%clk 0:01:51]}  Nf6 {[%clk 0:01:36]} 20. Bc4 {[%clk 0:01:48]}  Kg7 {[%clk 0:01:34]} 21. Nf4 {[%clk 0:01:36]} 1-0


[Site "https://www.chess.com"]